{"text_format":"3","workbook":"xlsx","n_sheets":4,"sheets":["Σύνοψη","Στοιχεία ενεργητικού","Παθητικό","Κατηγορίες"],"not_rendered":{"defined_names":10},"read":"whole","date_system":"1900"}

{"sheet":"Σύνοψη","index":0,"n_rows":12,"n_cols":4,"rows_kept":12}
[null,"Ισολογισμός"]
[null,null,{"$f":"\"ΟΕ-\"&YEAR(TODAY())-1","v":"ΟΕ-2016"},{"$f":"\"ΟΕ-\"&YEAR(TODAY())","v":"ΟΕ-2017"}]
[null,"Τύπος στοιχείου ενεργητικού","Προηγούμενο έτος","Τρέχον έτος"]
[null,"Τρέχοντα στοιχεία ενεργητικού",{"$f":"SUMIFS(Στοιχεία_ενεργητικού[Προηγούμενο έτος],Στοιχεία_ενεργητικού[Τύπος στοιχείου ενεργητικού],Πίνακας_εργαλείων[[#This Row],[Τύπος στοιχείου ενεργητικού]])+SUMIFS(Παθητικό[Προηγούμενο έτος],Παθητικό[Τύπος στοιχείου παθητικού],Πίνακας_εργαλείων[[#This Row],[Τύπος στοιχείου ενεργητικού]])","v":600},{"$f":"SUMIFS(Στοιχεία_ενεργητικού[Τρέχον έτος],Στοιχεία_ενεργητικού[Τύπος στοιχείου ενεργητικού],Πίνακας_εργαλείων[[#This Row],[Τύπος στοιχείου ενεργητικού]])+SUMIFS(Παθητικό[Τρέχον έτος],Παθητικό[Τύπος στοιχείου παθητικού],Πίνακας_εργαλείων[[#This Row],[Τύπος στοιχείου ενεργητικού]])","v":600}]
[null,"Πάγια",{"$f":"SUMIFS(Στοιχεία_ενεργητικού[Προηγούμενο έτος],Στοιχεία_ενεργητικού[Τύπος στοιχείου ενεργητικού],Πίνακας_εργαλείων[[#This Row],[Τύπος στοιχείου ενεργητικού]])+SUMIFS(Παθητικό[Προηγούμενο έτος],Παθητικό[Τύπος στοιχείου παθητικού],Πίνακας_εργαλείων[[#This Row],[Τύπος στοιχείου ενεργητικού]])","v":{"v":-100,"d":"-100 "}},{"$f":"SUMIFS(Στοιχεία_ενεργητικού[Τρέχον έτος],Στοιχεία_ενεργητικού[Τύπος στοιχείου ενεργητικού],Πίνακας_εργαλείων[[#This Row],[Τύπος στοιχείου ενεργητικού]])+SUMIFS(Παθητικό[Τρέχον έτος],Παθητικό[Τύπος στοιχείου παθητικού],Πίνακας_εργαλείων[[#This Row],[Τύπος στοιχείου ενεργητικού]])","v":{"v":-85,"d":"-85 "}}]
[null,"Άλλα στοιχεία ενεργητικού",{"$f":"SUMIFS(Στοιχεία_ενεργητικού[Προηγούμενο έτος],Στοιχεία_ενεργητικού[Τύπος στοιχείου ενεργητικού],Πίνακας_εργαλείων[[#This Row],[Τύπος στοιχείου ενεργητικού]])+SUMIFS(Παθητικό[Προηγούμενο έτος],Παθητικό[Τύπος στοιχείου παθητικού],Πίνακας_εργαλείων[[#This Row],[Τύπος στοιχείου ενεργητικού]])","v":0},{"$f":"SUMIFS(Στοιχεία_ενεργητικού[Τρέχον έτος],Στοιχεία_ενεργητικού[Τύπος στοιχείου ενεργητικού],Πίνακας_εργαλείων[[#This Row],[Τύπος στοιχείου ενεργητικού]])+SUMIFS(Παθητικό[Τρέχον έτος],Παθητικό[Τύπος στοιχείου παθητικού],Πίνακας_εργαλείων[[#This Row],[Τύπος στοιχείου ενεργητικού]])","v":0}]
[null,"Τρέχουσες υποχρεώσεις",{"$f":"SUMIFS(Στοιχεία_ενεργητικού[Προηγούμενο έτος],Στοιχεία_ενεργητικού[Τύπος στοιχείου ενεργητικού],Πίνακας_εργαλείων[[#This Row],[Τύπος στοιχείου ενεργητικού]])+SUMIFS(Παθητικό[Προηγούμενο έτος],Παθητικό[Τύπος στοιχείου παθητικού],Πίνακας_εργαλείων[[#This Row],[Τύπος στοιχείου ενεργητικού]])","v":500},{"$f":"SUMIFS(Στοιχεία_ενεργητικού[Τρέχον έτος],Στοιχεία_ενεργητικού[Τύπος στοιχείου ενεργητικού],Πίνακας_εργαλείων[[#This Row],[Τύπος στοιχείου ενεργητικού]])+SUMIFS(Παθητικό[Τρέχον έτος],Παθητικό[Τύπος στοιχείου παθητικού],Πίνακας_εργαλείων[[#This Row],[Τύπος στοιχείου ενεργητικού]])","v":350}]
[null,"Μακροπρόθεσμες υποχρεώσεις",{"$f":"SUMIFS(Στοιχεία_ενεργητικού[Προηγούμενο έτος],Στοιχεία_ενεργητικού[Τύπος στοιχείου ενεργητικού],Πίνακας_εργαλείων[[#This Row],[Τύπος στοιχείου ενεργητικού]])+SUMIFS(Παθητικό[Προηγούμενο έτος],Παθητικό[Τύπος στοιχείου παθητικού],Πίνακας_εργαλείων[[#This Row],[Τύπος στοιχείου ενεργητικού]])","v":0},{"$f":"SUMIFS(Στοιχεία_ενεργητικού[Τρέχον έτος],Στοιχεία_ενεργητικού[Τύπος στοιχείου ενεργητικού],Πίνακας_εργαλείων[[#This Row],[Τύπος στοιχείου ενεργητικού]])+SUMIFS(Παθητικό[Τρέχον έτος],Παθητικό[Τύπος στοιχείου παθητικού],Πίνακας_εργαλείων[[#This Row],[Τύπος στοιχείου ενεργητικού]])","v":0}]
[null,"Μετοχικό κεφάλαιο",{"$f":"SUMIFS(Στοιχεία_ενεργητικού[Προηγούμενο έτος],Στοιχεία_ενεργητικού[Τύπος στοιχείου ενεργητικού],Πίνακας_εργαλείων[[#This Row],[Τύπος στοιχείου ενεργητικού]])+SUMIFS(Παθητικό[Προηγούμενο έτος],Παθητικό[Τύπος στοιχείου παθητικού],Πίνακας_εργαλείων[[#This Row],[Τύπος στοιχείου ενεργητικού]])","v":0},{"$f":"SUMIFS(Στοιχεία_ενεργητικού[Τρέχον έτος],Στοιχεία_ενεργητικού[Τύπος στοιχείου ενεργητικού],Πίνακας_εργαλείων[[#This Row],[Τύπος στοιχείου ενεργητικού]])+SUMIFS(Παθητικό[Τρέχον έτος],Παθητικό[Τύπος στοιχείου παθητικού],Πίνακας_εργαλείων[[#This Row],[Τύπος στοιχείου ενεργητικού]])","v":350}]
[null,"Συνολικό ενεργητικού",{"$f":"Στοιχεία_ενεργητικού[[#Totals],[Προηγούμενο έτος]]","v":500},{"$f":"Στοιχεία_ενεργητικού[[#Totals],[Τρέχον έτος]]","v":515}]
[null,"Σύνολο παθητικού και μετοχικού κεφαλαίου",{"$f":"Παθητικό[[#Totals],[Προηγούμενο έτος]]","v":500},{"$f":"Παθητικό[[#Totals],[Τρέχον έτος]]","v":700}]
[null,"Υπόλοιπο",{"$f":"C10-C11","v":0},{"$f":"D10-D11","v":{"v":-185,"d":"-185 "}}]

{"sheet":"Στοιχεία ενεργητικού","index":1,"n_rows":14,"n_cols":5,"rows_kept":14}
[null,"Στοιχεία ενεργητικού"]
[{"$nulls":3},{"$f":"ΟΕ_ΕΤΟΣ","v":"ΟΕ-2016"},{"$f":"ΟΕ_ΕΤΟΣ_2","v":"ΟΕ-2017"}]
[null,"Τύπος στοιχείου ενεργητικού","Περιγραφή","Προηγούμενο έτος","Τρέχον έτος"]
[null,"Τρέχοντα στοιχεία ενεργητικού","Ταμείο",600,600]
[null,"Τρέχοντα στοιχεία ενεργητικού","Επενδύσεις"]
[null,"Τρέχοντα στοιχεία ενεργητικού","Αποθέματα"]
[null,"Τρέχοντα στοιχεία ενεργητικού","Εισπρακτέοι λογαριασμοί"]
[null,"Τρέχοντα στοιχεία ενεργητικού","Προπληρωμένα έξοδα"]
[null,"Πάγια","Ακίνητη περιουσία και εξοπλισμός"]
[null,"Πάγια","Βελτιώσεις μισθίων"]
[null,"Πάγια","Μετοχές και άλλες επενδύσεις"]
[null,"Πάγια","Μείον σωρευτικές αποσβέσεις (αρνητική τιμή)",{"v":-100,"d":"-100 "},{"v":-85,"d":"-85 "}]
[null,"Άλλα στοιχεία ενεργητικού","Φιλανθρωπικές οργανώσεις"]
[null,"Συνολικό ενεργητικού",null,{"$f":"SUBTOTAL(109,Στοιχεία_ενεργητικού[Προηγούμενο έτος])","v":500},{"$f":"SUBTOTAL(109,Στοιχεία_ενεργητικού[Τρέχον έτος])","v":515}]

{"sheet":"Παθητικό","index":2,"n_rows":12,"n_cols":5,"rows_kept":12}
[null,"Παθητικό"]
[{"$nulls":3},{"$f":"ΟΕ_ΕΤΟΣ","v":"ΟΕ-2016"},{"$f":"ΟΕ_ΕΤΟΣ_2","v":"ΟΕ-2017"}]
[null,"Τύπος στοιχείου παθητικού","Περιγραφή","Προηγούμενο έτος","Τρέχον έτος"]
[null,"Τρέχουσες υποχρεώσεις","Πληρωτέοι λογαριασμοί",null,350]
[null,"Τρέχουσες υποχρεώσεις","Δεδουλευμένοι μισθοί"]
[null,"Τρέχουσες υποχρεώσεις","Δεδουλευμένες αμοιβές",500]
[null,"Τρέχουσες υποχρεώσεις","Πληρωτέτοι φόροι εισοδήματος"]
[null,"Τρέχουσες υποχρεώσεις","Μη δεδουλευμένα έσοδα"]
[null,"Μακροπρόθεσμες υποχρεώσεις","Πληρωτέο στεγαστικό δάνειο"]
[null,"Μετοχικό κεφάλαιο","Επενδυμένο κεφάλαιο",null,350]
[null,"Μετοχικό κεφάλαιο","Σωρευμένα μη διανεμημένα κέρδη"]
[null,"Σύνολο παθητικού και μετοχικού κεφαλαίου",null,{"$f":"SUBTOTAL(109,Παθητικό[Προηγούμενο έτος])","v":500},{"$f":"SUBTOTAL(109,Παθητικό[Τρέχον έτος])","v":700}]

{"sheet":"Κατηγορίες","index":3,"n_rows":9,"n_cols":2,"rows_kept":9}
[null,"Κατηγορίες"]
[]
[null,"Κατηγορίες"]
[null,"Τρέχοντα στοιχεία ενεργητικού"]
[null,"Πάγια"]
[null,"Άλλα στοιχεία ενεργητικού"]
[null,"Τρέχουσες υποχρεώσεις"]
[null,"Μακροπρόθεσμες υποχρεώσεις"]
[null,"Μετοχικό κεφάλαιο"]